bitfinex/quotes_BTCUSD_20250922
["timestamp","ask_amount","ask_price","bid_price","bid_amount"]
[1758533973210,2.03192953,112520.0,112510.0,0.007]
[1758533974317,2.03192953,112520.0,112510.0,0.001]
[1758533974523,2.03192953,112520.0,112510.0,0.004]
[1758533974729,1.53496217,112520.0,112510.0,0.004]
[1758533974938,1.05714323,112520.0,112510.0,0.004]
[1758533975320,0.68880758,112520.0,112510.0,0.004]
[1758533975593,2.4578623,112520.0,112510.0,0.004]
[1758533976011,1.6827423,112520.0,112510.0,0.004]
[1758533976221,0.62504438,112520.0,112510.0,0.004]
[1758533976426,2.3944991,112520.0,112510.0,0.004]
[1758533978076,0.59633438,112520.0,112510.0,0.004]
[1758533978286,1.46851739,112520.0,112510.0,0.02915]
[1758533978457,1.37239739,112520.0,112510.0,0.02915]
[1758533978663,1.46311739,112520.0,112510.0,0.02915]
[1758533978804,1.46311739,112520.0,112510.0,0.03164]
[1758533979005,1.46304979,112520.0,112510.0,0.02915]
[1758533979376,1.48214491,112520.0,112510.0,0.02915]
[1758533979579,1.97911227,112520.0,112510.0,0.02915]
[1758533979786,1.97395227,112520.0,112510.0,0.02915]
[1758533980000,1.47698491,112520.0,112510.0,0.02915]
[1758533980144,1.13698491,112520.0,112510.0,0.02915]
[1758533980561,0.59031755,112520.0,112510.0,0.02915]
[1758533980759,1.38324491,112520.0,112510.0,0.02915]
[1758533980983,1.47936491,112520.0,112510.0,0.02915]
[1758533981184,1.48020491,112520.0,112510.0,0.02915]
[1758533982382,1.46626979,112520.0,112510.0,0.02915]
[1758533984762,1.46928979,112520.0,112510.0,0.02915]
[1758533985165,0.97232243,112520.0,112510.0,0.02915]
[1758533985369,1.46928979,112520.0,112510.0,0.05009576]
[1758533985551,1.46928979,112520.0,112510.0,0.02915]
[1758533986585,1.37256979,112520.0,112510.0,0.02915]
[1758533986793,0.04049957,112520.0,112510.0,0.22717816]
[1758533987052,0.99226468,112520.0,112510.0,0.03164]
[1758533987490,0.99226468,112520.0,112510.0,0.20940197]
[1758533987614,0.51831851,112520.0,112510.0,0.2507132]
[1758533987814,0.02135115,112520.0,112510.0,0.2507132]
[1758533988038,0.31747115,112520.0,112510.0,0.2507132]
[1758533988246,0.79308736,112520.0,112510.0,0.2507132]
[1758533989318,0.97083353,112520.0,112510.0,0.2482232]
[1758533989544,0.79308736,112520.0,112510.0,0.2507132]
[1758533990116,0.29612,112520.0,112510.0,0.2507132]
[1758533990343,0.79308736,112520.0,112510.0,0.2507132]
[1758533990658,1.21949693,112520.0,112510.0,0.2482232]
[1758533990860,1.04175076,112520.0,112510.0,0.2482232]
[1758533991076,0.29612,112520.0,112510.0,0.2482232]
[1758533991301,1.04175076,112520.0,112510.0,0.2482232]
[1758533991659,0.29612,112520.0,112510.0,0.2482232]
[1758533991857,1.04175076,112520.0,112510.0,0.2482232]
[1758533992203,1.21949693,112520.0,112510.0,0.2482232]
[1758533992616,1.04175076,112520.0,112510.0,0.2482232]
[1758533993419,1.04175076,112520.0,112510.0,0.2507132]
[1758533993849,1.59747231,112520.0,112510.0,0.004]
[1758533994095,0.90488324,112520.0,112510.0,0.004]
[1758533994494,1.67724724,112520.0,112510.0,0.004]
[1758533994898,2.06923957,112520.0,112510.0,0.004]
[1758533995335,0.95079343,112520.0,112510.0,0.004]
[1758533995524,2.04211104,112520.0,112510.0,0.004]
[1758533995950,0.95079343,112520.0,112510.0,0.004]
[1758533996128,2.06923957,112520.0,112510.0,0.004]
[1758533996926,2.09421272,112520.0,112510.0,0.004]
[1758533997727,2.10814837,112520.0,112510.0,0.004]
[1758533998555,3.55674641,112520.0,112510.0,0.004]
[1758533998782,2.41117174,112520.0,112510.0,0.004]
[1758533999912,2.3758832,112520.0,112510.0,0.004]
[1758534000108,2.35923443,112520.0,112510.0,0.004]
[1758534000350,2.05479005,112520.0,112510.0,0.004]
[1758534000616,2.83451005,112520.0,112510.0,0.004]
[1758534000988,2.83415005,112520.0,112510.0,0.004]
[1758534001181,1.75479005,112520.0,112510.0,0.004]
[1758534001387,1.35091277,112520.0,112510.0,0.004]
[1758534001597,2.13019277,112520.0,112510.0,0.004]
[1758534001927,2.50300815,112520.0,112510.0,0.004]
[1758534002387,1.35091277,112520.0,112510.0,0.004]
[1758534002608,2.13015277,112520.0,112510.0,0.004]
[1758534003097,1.32838277,112520.0,112510.0,0.004]
[1758534003318,2.08936871,112520.0,112510.0,0.02963]
[1758534003545,2.11490871,112520.0,112510.0,0.004]
[1758534004221,0.56267795,112520.0,112510.0,0.00614]
[1758534004488,1.40442871,112520.0,112510.0,0.03271]
[1758534004707,1.70274871,112520.0,112510.0,0.03271]
[1758534004885,1.70274871,112520.0,112510.0,0.02963]
[1758534005091,1.70274871,112520.0,112510.0,0.05068272]
[1758534006006,1.60650871,112520.0,112510.0,0.05068272]
[1758534006250,1.70262871,112520.0,112510.0,0.05068272]
[1758534006499,0.95011017,112520.0,112510.0,0.20495469]
[1758534006644,1.34427017,112520.0,112510.0,0.05376272]
[1758534007064,0.93863941,112520.0,112510.0,0.23152469]
[1758534007417,0.87517479,112520.0,112510.0,0.23152469]
[1758534007636,0.93847941,112520.0,112510.0,0.23152469]
[1758534007838,1.31129479,112520.0,112510.0,0.23152469]
[1758534008708,1.21501479,112520.0,112510.0,0.23152469]
[1758534008911,1.31113479,112520.0,112510.0,0.23152469]
[1758534009124,0.76057324,112520.0,112510.0,0.23152469]
[1758534009324,1.31113479,112520.0,112510.0,0.23152469]
[1758534009534,1.13338862,112520.0,112510.0,0.23152469]
[1758534011357,1.31113479,112520.0,112510.0,0.23152469]
[1758534012009,0.76057324,112520.0,112510.0,0.23152469]
[1758534012231,1.13338862,112520.0,112510.0,0.23152469]
[1758534012648,0.02673324,112520.0,112510.0,0.23152469]
[1758534012849,0.98666736,112530.0,112520.0,0.17774617]
[1758534013109,0.93774296,112530.0,112520.0,0.24822831]
[1758534013306,1.13282636,112530.0,112520.0,0.24822831]
[1758534014186,0.637,112530.0,112520.0,0.24822831]
[1758534014391,1.00981538,112530.0,112520.0,0.24822831]
[1758534014606,1.01081538,112530.0,112520.0,0.24822831]
[1758534015220,0.638,112530.0,112520.0,0.24822831]
[1758534015433,1.00981538,112530.0,112520.0,0.24822831]
[1758534015840,1.00981538,112530.0,112520.0,0.25822831]
[1758534016076,0.02672709,112540.0,112530.0,0.17773038]
[1758534016262,1.31199706,112540.0,112530.0,0.22132625]
[1758534016579,1.71047244,112540.0,112530.0,0.04359587]
[1758534016906,0.17773038,112530.0,112520.0,0.05505214]
[1758534017127,0.95104114,112530.0,112520.0,0.05105214]
[1758534017358,0.24069892,112530.0,112520.0,0.01012505]
[1758534017562,0.95104114,112530.0,112520.0,0.00012505]
[1758534017736,0.60495656,112530.0,112520.0,0.00012505]
[1758534018350,0.97777194,112530.0,112520.0,0.00012505]
[1758534019351,0.94495656,112530.0,112520.0,0.00012505]
[1758534019781,0.94495656,112530.0,112520.0,0.00112505]
[1758534019963,0.57214118,112530.0,112520.0,0.00112505]
[1758534020203,0.94495656,112530.0,112520.0,0.00112505]
[1758534020417,0.94495656,112530.0,112520.0,0.17887122]
[1758534020418,0.92231656,112530.0,112520.0,0.17887122]
[1758534020635,1.30995656,112530.0,112520.0,0.24588373]
[1758534021596,1.30995656,112530.0,112520.0,0.24881373]
[1758534021597,0.6629708,112530.0,112520.0,0.24881373]
[1758534022015,1.03578618,112530.0,112520.0,0.24881373]
[1758534022214,1.00905538,112530.0,112520.0,0.24881373]
[1758534022418,0.34,112530.0,112520.0,0.24881373]
[1758534022735,0.66905538,112530.0,112520.0,0.24881373]
[1758534023985,0.29624,112530.0,112520.0,0.24881373]
[1758534024189,0.66905538,112530.0,112520.0,0.24881373]
[1758534025220,0.66905538,112530.0,112520.0,0.24885373]
[1758534026458,0.29624,112530.0,112520.0,0.24592373]
[1758534026664,0.29624,112530.0,112520.0,0.24885373]
[1758534026871,0.02672697,112540.0,112530.0,0.17773038]
[1758534027077,1.13106235,112540.0,112530.0,0.24824879]
[1758534027286,0.75824697,112540.0,112530.0,0.24824879]
[1758534027605,1.13106235,112540.0,112530.0,0.24824879]
[1758534028029,1.13302235,112540.0,112530.0,0.24518879]
[1758534028269,1.31073694,112540.0,112530.0,0.24518879]
[1758534028458,1.28400997,112540.0,112530.0,0.24518879]
[1758534028631,1.28400997,112540.0,112530.0,0.25318879]
[1758534028847,1.28724997,112540.0,112530.0,0.25318879]
[1758534029020,1.31081997,112540.0,112530.0,0.25318879]
[1758534029440,1.13210538,112540.0,112530.0,0.25318879]
[1758534029644,1.10953538,112540.0,112530.0,0.25318879]
[1758534029846,1.10953538,112540.0,112530.0,0.25718879]
[1758534030532,2.05545073,112540.0,112530.0,0.012]
[1758534030739,1.70976388,112540.0,112530.0,0.012]
[1758534031416,1.68263535,112540.0,112530.0,0.004]
[1758534031769,1.68263535,112540.0,112530.0,0.001]
[1758534031978,1.68263535,112540.0,112520.0,0.21842368]
[1758534032202,0.57635576,112530.0,112520.0,0.04067756]
[1758534032397,0.95113114,112530.0,112520.0,0.04067756]
[1758534032678,1.29113114,112530.0,112520.0,0.04067756]
[1758534032885,1.29113114,112530.0,112520.0,0.00016505]
[1758534033298,0.91831576,112530.0,112520.0,0.00016505]
[1758534033746,0.91831576,112530.0,112520.0,0.00216505]
[1758534034807,0.91831576,112530.0,112520.0,0.00716505]
[1758534036323,0.54550038,112530.0,112520.0,0.00716505]
[1758534036490,0.91831576,112530.0,112520.0,0.00716505]
[1758534037172,0.89574576,112530.0,112520.0,0.18491122]
[1758534037402,0.89574576,112530.0,112520.0,0.2287496]
[1758534037403,0.34196,112530.0,112520.0,0.2287496]
[1758534037582,1.00677538,112530.0,112520.0,0.2546196]
[1758534037846,0.63396,112530.0,112520.0,0.2546196]
[1758534038044,1.00677538,112530.0,112520.0,0.2546196]
[1758534038331,1.00677538,112530.0,112520.0,0.2515596]
[1758534038683,0.63592,112530.0,112520.0,0.2515596]
[1758534038944,1.18646576,112530.0,112520.0,0.2515596]
[1758534039595,1.00849538,112530.0,112520.0,0.2515596]
[1758534039819,1.10461538,112530.0,112520.0,0.2515596]
[1758534040028,1.68097114,112530.0,112520.0,0.04901343]
[1758534040256,1.68097114,112530.0,112520.0,0.00716505]
[1758534041125,1.72728984,112530.0,112520.0,0.00716505]
[1758534041351,1.72689431,112530.0,112520.0,0.00716505]
[1758534041582,1.72669431,112530.0,112520.0,0.00716505]
[1758534042001,1.63057431,112530.0,112520.0,0.00716505]
[1758534042204,1.72669431,112530.0,112520.0,0.00716505]
[1758534042538,1.72669431,112530.0,112520.0,0.00516505]
[1758534042954,0.98106355,112530.0,112520.0,0.00616505]
[1758534043193,1.72669431,112530.0,112520.0,0.00116505]
[1758534043408,1.33705431,112530.0,112520.0,0.00116505]
[1758534043627,1.63037431,112530.0,112520.0,0.00116505]
[1758534043836,1.72637431,112530.0,112520.0,0.00116505]
[1758534044046,0.59142355,112530.0,112520.0,0.00116505]
[1758534044232,0.56885355,112530.0,112520.0,0.00116505]
[1758534044472,1.30655876,112530.0,112520.0,0.02596505]
[1758534044680,1.32770144,112530.0,112520.0,0.04664365]
[1758534044890,1.30759576,112530.0,112520.0,0.02284365]
[1758534045070,1.32677838,112530.0,112520.0,0.02284365]
[1758534045279,0.953963,112530.0,112520.0,0.00216505]
[1758534045694,1.69959376,112530.0,112520.0,0.00216505]
[1758534047919,1.72672229,112530.0,112520.0,0.00216505]
[1758534048585,1.76201083,112530.0,112520.0,0.00216505]
[1758534048802,1.01638007,112530.0,112520.0,0.00216505]
[1758534049251,1.78874285,112530.0,112520.0,0.00216505]
[1758534049487,1.76161432,112530.0,112520.0,0.00216505]
[1758534049953,1.73904432,112530.0,112520.0,0.00216505]
[1758534050143,1.01598356,112530.0,112520.0,0.00216505]
[1758534050368,1.72632578,112530.0,112520.0,0.00216505]
[1758534050645,1.70714316,112530.0,112520.0,0.00216505]
[1758534051198,1.70375011,112530.0,112520.0,0.00216505]
[1758534051418,1.70714316,112530.0,112520.0,0.00216505]
[1758534051624,1.72631942,112530.0,112520.0,0.00216505]
[1758534052652,1.47777913,112530.0,112520.0,0.00216505]
[1758534056003,0.42315682,112530.0,112520.0,0.00415505]
[1758534056242,1.30698085,112530.0,112520.0,0.03002505]
[1758534056454,1.12925047,112530.0,112520.0,0.23032744]
[1758534056668,1.22537047,112530.0,112520.0,0.23032744]
[1758534056897,0.34,112530.0,112520.0,0.23032744]
[1758534057105,0.63212,112530.0,112520.0,0.23032744]
[1758534057526,0.34,112530.0,112520.0,0.23032744]
[1758534057983,1.30884085,112530.0,112520.0,0.00721505]
[1758534058246,1.33475085,112530.0,112520.0,0.00216505]
[1758534058893,0.80969038,112530.0,112520.0,0.22749583]
[1758534059112,0.80969038,112530.0,112520.0,0.20972122]
[1758534059323,0.63196,112530.0,112520.0,0.20972122]
[1758534059564,0.80969038,112530.0,112520.0,0.24846944]
[1758534059783,0.63196,112530.0,112520.0,0.24846944]
[1758534059990,0.80969038,112530.0,112520.0,0.24846944]
[1758534060118,0.83709047,112530.0,112520.0,0.24846944]
[1758534060353,0.63192,112530.0,112520.0,0.24846944]
[1758534061884,0.34,112530.0,112520.0,0.24846944]
[1758534062101,0.63192,112530.0,112520.0,0.24846944]
[1758534064526,0.29192,112530.0,112520.0,0.24846944]
[1758534065588,0.34,112540.0,112530.0,0.17771639]
[1758534065872,0.19250761,112560.0,112550.0,0.1776988]
[1758534066043,0.62505654,112560.0,112550.0,0.1796988]
[1758534066306,0.88465047,112560.0,112550.0,0.2057588]
[1758534066485,1.22465047,112560.0,112550.0,0.2027788]
[1758534066876,0.88669047,112560.0,112550.0,0.2027788]
[1758534067100,0.88669047,112560.0,112520.0,0.00116505]
[1758534067101,0.51773038,112530.0,112520.0,0.00116505]
[1758534067322,1.40230085,112530.0,112520.0,0.00116505]
[1758534067545,1.40434085,112530.0,112520.0,0.00116505]
[1758534067797,1.43098085,112530.0,112520.0,0.00016505]
[1758534068701,1.43098085,112530.0,112520.0,0.00116505]
[1758534070504,1.43098085,112530.0,112520.0,0.00216505]
[1758534070729,1.60528584,112530.0,112520.0,0.00216505]
[1758534070951,1.62445738,112530.0,112520.0,0.00216505]
[1758534072435,1.62445738,112530.0,112520.0,0.00116505]
[1758534072659,1.62545738,112530.0,112520.0,0.00016505]
[1758534073579,1.62845738,112530.0,112520.0,0.00016505]
[1758534074922,1.6895702,112530.0,112520.0,0.00016505]
[1758534075134,2.01373738,112530.0,112520.0,0.00016505]
[1758534075354,1.24097738,112530.0,112520.0,0.00016505]
[1758534075575,2.01369738,112530.0,112520.0,0.00016505]
[1758534076231,1.24097738,112530.0,112520.0,0.00016505]
[1758534076457,2.01369738,112530.0,112520.0,0.00016505]
[1758534077631,1.34230192,112530.0,112520.0,0.00016505]
[1758534077879,2.04043234,112530.0,112520.0,0.00066505]
[1758534079233,0.0499065,112530.0,112520.0,0.00564505]
[1758534079478,0.29556,112530.0,112520.0,0.20647122]
[1758534079757,1.14980584,112530.0,112520.0,0.00066505]
[1758534080001,1.51236584,112530.0,112520.0,0.00066505]
[1758534080221,1.50936584,112530.0,112520.0,0.00066505]
[1758534080873,1.21780584,112530.0,112520.0,0.00066505]
[1758534081088,1.21780584,112530.0,112520.0,0.00766505]
[1758534081491,1.60524584,112530.0,112520.0,0.01166505]
[1758534081749,1.60524584,112530.0,112520.0,0.0306077]
[1758534081982,1.21780584,112530.0,112520.0,0.0266077]
[1758534082212,1.60524584,112530.0,112520.0,0.0266077]
[1758534082459,1.60524584,112530.0,112520.0,0.0196077]
[1758534082675,0.93385038,112530.0,112520.0,0.0206077]
[1758534082899,1.60524584,112530.0,112520.0,0.0216077]
[1758534083130,0.93385038,112530.0,112520.0,0.0216077]
[1758534083348,1.60524584,112530.0,112520.0,0.0216077]
[1758534083803,1.21780584,112530.0,112520.0,0.0216077]
[1758534084031,1.60524584,112530.0,112520.0,0.0216077]
[1758534086001,1.60524584,112530.0,112520.0,0.00266505]
[1758534090757,1.62440983,112530.0,112520.0,0.00266505]
[1758534092128,1.63834417,112530.0,112520.0,0.00266505]
[1758534092348,1.62440983,112530.0,112520.0,0.00266505]
[1758534092556,1.94740935,112530.0,112520.0,0.00266505]
[1758534093427,1.45021186,112530.0,112520.0,0.00266505]
[1758534094441,1.94740935,112530.0,112520.0,0.00266505]
[1758534094696,1.45021186,112530.0,112520.0,0.00266505]
[1758534095334,0.95301437,112530.0,112520.0,0.00266505]
[1758534095651,1.94740935,112530.0,112520.0,0.00266505]
[1758534096338,1.45021186,112530.0,112520.0,0.00266505]
[1758534098690,0.56557437,112530.0,112520.0,0.00266505]
[1758534098904,1.44945186,112530.0,112520.0,0.00464505]
[1758534099123,1.44945186,112530.0,112520.0,0.00266505]
[1758534099328,1.06277186,112530.0,112520.0,0.00266505]
[1758534099542,1.44880186,112530.0,112520.0,0.00266505]
[1758534100894,1.42281186,112530.0,112520.0,0.00464505]
[1758534101097,1.42281186,112530.0,112520.0,0.02749505]
[1758534101302,1.42588186,112530.0,112520.0,0.00464505]
[1758534101541,1.44879186,112530.0,112520.0,0.00266505]
[1758534102591,1.06211186,112530.0,112520.0,0.00266505]
[1758534102804,1.44879186,112530.0,112520.0,0.00266505]
[1758534104418,1.03409186,112530.0,112520.0,0.03055505]
[1758534104627,1.42077186,112530.0,112520.0,0.03055505]
[1758534104808,1.42077186,112530.0,112520.0,0.05316418]
[1758534105227,1.42276186,112530.0,112520.0,0.05010418]
[1758534107971,1.03409186,112530.0,112520.0,0.24868496]
[1758534108212,0.80825038,112530.0,112520.0,0.23091035]
[1758534108427,0.67491773,112540.0,112530.0,0.17773038]
[1758534108644,0.46824024,112540.0,112530.0,0.24648445]
[1758534108876,1.30543773,112540.0,112530.0,0.06875407]
[1758534109740,1.30543773,112540.0,112530.0,0.06569407]
[1758534110167,1.30543773,112540.0,112530.0,0.06875407]
[1758534110397,1.30843773,112540.0,112530.0,0.06875407]
[1758534110610,1.01791773,112540.0,112530.0,0.06875407]
[1758534110795,0.52172024,112540.0,112530.0,0.06875407]
[1758534110998,1.01891773,112540.0,112530.0,0.06875407]
[1758534111806,1.30543773,112540.0,112530.0,0.06875407]
[1758534112023,1.30543773,112540.0,112530.0,0.24648445]
[1758534112458,0.83719749,112540.0,112530.0,0.24648445]
[1758534112672,0.52661379,112550.0,112540.0,0.17771459]
[1758534112898,1.31429128,112550.0,112540.0,0.22211449]
[1758534113103,1.31628128,112550.0,112540.0,0.0672499]
[1758534113520,1.31628128,112550.0,112540.0,0.02483]
[1758534113943,1.31429128,112550.0,112540.0,0.20354459]
[1758534114113,1.31429128,112550.0,112540.0,0.20760459]
[1758534114347,1.31429128,112550.0,112540.0,0.02989]
[1758534114754,1.18974404,112550.0,112540.0,0.02989]
[1758534115112,1.18974404,112550.0,112540.0,0.05065204]
[1758534115962,0.81709379,112550.0,112540.0,0.05065204]
[1758534116431,1.18974404,112550.0,112540.0,0.05065204]
[1758534116844,1.18974404,112550.0,112540.0,0.04759204]
[1758534117283,1.19177404,112550.0,112540.0,0.04759204]
[1758534117686,0.81912379,112550.0,112540.0,0.04759204]
[1758534117870,1.19177404,112550.0,112540.0,0.04759204]
[1758534118076,1.56442429,112550.0,112540.0,0.04759204]
[1758534118703,1.56740429,112550.0,112540.0,0.002]
[1758534118919,1.65251003,112550.0,112540.0,0.002]
[1758534119135,1.62667283,112550.0,112540.0,0.002]
[1758534119376,1.65251003,112550.0,112540.0,0.002]
[1758534119816,2.02516028,112550.0,112540.0,0.002]
[1758534120029,1.99932308,112550.0,112540.0,0.002]
[1758534120242,2.01847698,112550.0,112540.0,0.002]
[1758534120706,2.04431418,112550.0,112540.0,0.002]
[1758534120940,1.98318844,112550.0,112540.0,0.002]
[1758534121170,1.98318844,112550.0,112540.0,0.001]
[1758534121388,0.51773038,112530.0,112520.0,0.00066505]
[1758534121598,1.64955088,112530.0,112520.0,0.00066505]
[1758534121798,1.65158088,112530.0,112520.0,0.02361505]
[1758534122006,1.65158088,112530.0,112520.0,0.02566505]
[1758534122232,1.65158088,112530.0,112520.0,0.04721548]
[1758534122667,1.67854088,112530.0,112520.0,0.04721548]
[1758534123521,1.67854088,112530.0,112520.0,0.05121548]
[1758534123946,1.67854088,112530.0,112520.0,0.02621548]
[1758534124157,1.67854088,112530.0,112520.0,0.00466505]
[1758534124379,1.67854088,112530.0,112520.0,0.00666505]
[1758534128228,1.55546088,112530.0,112520.0,0.00871505]
[1758534128439,1.58242088,112530.0,112520.0,0.00666505]
[1758534129192,1.29202088,112530.0,112520.0,0.00666505]
[1758534129408,1.58238088,112530.0,112520.0,0.00666505]
[1758534131058,1.29202088,112530.0,112520.0,0.00666505]
[1758534131183,1.58238088,112530.0,112520.0,0.00666505]
[1758534132697,1.31119549,112530.0,112520.0,0.00666505]
[1758534132903,1.69767549,112530.0,112520.0,0.00666505]
[1758534133921,1.69767549,112530.0,112520.0,0.00466505]
[1758534134117,1.69767549,112530.0,112520.0,0.00166505]
[1758534134552,1.69767549,112530.0,112520.0,0.00266505]
[1758534136435,1.69096446,112530.0,112520.0,0.00266505]
[1758534137188,1.71013694,112530.0,112520.0,0.00266505]
[1758534139526,1.32365694,112530.0,112520.0,0.00266505]
[1758534139847,1.71009694,112530.0,112520.0,0.00266505]
[1758534140051,2.10860854,112530.0,112520.0,0.00266505]
[1758534140255,1.71009694,112530.0,112520.0,0.00266505]
[1758534141346,1.32365694,112530.0,112520.0,0.00166505]
[1758534141571,1.32365694,112530.0,112520.0,0.00066505]
[1758534141783,1.32465694,112530.0,112520.0,0.00066505]
[1758534142032,2.09861694,112530.0,112520.0,0.00066505]
[1758534142252,1.32765694,112530.0,112520.0,0.00066505]
[1758534142483,2.09857694,112530.0,112520.0,0.00066505]
[1758534142700,1.61793694,112530.0,112520.0,0.00066505]
[1758534142887,1.32765694,112530.0,112520.0,0.00066505]
[1758534143344,1.71405694,112530.0,112520.0,0.00066505]
[1758534143561,0.58235644,112530.0,112520.0,0.00066505]
[1758534143807,1.32765694,112530.0,112520.0,0.00066505]
[1758534144452,1.69007694,112530.0,112520.0,0.00066505]
[1758534144666,1.71406694,112530.0,112520.0,0.00066505]
[1758534145829,1.32766694,112530.0,112520.0,0.00066505]
[1758534146306,1.61794694,112530.0,112520.0,0.00066505]
[1758534146639,1.71406694,112530.0,112520.0,0.00066505]
[1758534149072,1.73880694,112530.0,112520.0,0.00066505]
[1758534150682,1.54029494,112530.0,112520.0,0.00066505]
[1758534150871,1.71802532,112530.0,112520.0,0.00066505]
[1758534153558,1.33162532,112530.0,112520.0,0.00066505]
[1758534153764,1.69101532,112530.0,112520.0,0.02752505]
[1758534153964,1.30465532,112530.0,112520.0,0.02752505]
[1758534154223,1.69097532,112530.0,112520.0,0.02752505]
[1758534154424,1.59485532,112530.0,112520.0,0.02752505]
[1758534154602,1.69097532,112530.0,112520.0,0.02752505]
[1758534154831,1.30262532,112530.0,112520.0,0.03066505]
[1758534155030,1.30262532,112530.0,112520.0,0.05328523]
[1758534155246,1.68894532,112530.0,112520.0,0.05328523]
[1758534155396,1.68894532,112530.0,112520.0,0.03066505]
[1758534155603,1.68594532,112530.0,112520.0,0.03066505]
[1758534155803,1.68494532,112530.0,112520.0,0.03066505]
[1758534156181,1.68494532,112530.0,112520.0,0.03166505]
[1758534156813,1.68447432,112530.0,112520.0,0.03166505]
[1758534157020,1.68447432,112530.0,112520.0,0.03660917]
[1758534157227,1.68447432,112530.0,112520.0,0.03346917]
[1758534157440,1.68662432,112530.0,112520.0,0.03446917]
[1758534158062,1.68987432,112530.0,112520.0,0.03446917]
[1758534158570,1.71358432,112530.0,112520.0,0.00266505]
[1758534158756,1.77488744,112530.0,112520.0,0.00266505]
[1758534159236,1.77488744,112530.0,112520.0,0.00166505]
[1758534159622,1.7925573,112530.0,112520.0,0.00166505]
[1758534161074,1.7925573,112530.0,112520.0,0.00066505]
[1758534161285,1.79256103,112530.0,112520.0,0.00066505]
[1758534161513,1.79556103,112530.0,112520.0,0.00066505]
[1758534161915,1.76969968,112530.0,112520.0,0.00066505]
[1758534162701,1.75302609,112530.0,112520.0,0.00066505]
[1758534162922,1.76970219,112530.0,112520.0,0.00066505]
[1758534164484,2.14235244,112530.0,112520.0,0.00066505]
[1758534164717,1.76970219,112530.0,112520.0,0.00066505]
[1758534165724,2.14235244,112530.0,112520.0,0.00066505]
[1758534166148,1.76970219,112530.0,112520.0,0.00066505]
[1758534167658,1.85464436,112530.0,112520.0,0.00066505]
[1758534167837,1.76970219,112530.0,112520.0,0.00066505]
[1758534168741,1.76970608,112530.0,112520.0,0.00066505]
[1758534171794,1.02440558,112530.0,112520.0,0.00066505]
[1758534172175,1.73426431,112530.0,112520.0,0.00066505]
[1758534172808,1.61098431,112530.0,112520.0,0.00278505]
[1758534173018,1.68827432,112530.0,112520.0,0.03066505]
[1758534173189,1.31562407,112530.0,112520.0,0.03066505]
[1758534173426,1.21950407,112530.0,112520.0,0.03066505]
[1758534173627,1.31562407,112530.0,112520.0,0.03066505]
[1758534174295,1.31562407,112530.0,112520.0,0.05150774]
[1758534174494,0.55685382,112530.0,112520.0,0.05150774]
[1758534174706,0.51260286,112530.0,112520.0,0.06928235]
[1758534174908,0.17773038,112530.0,112520.0,0.06928235]
[1758534175155,1.01476034,112530.0,112520.0,0.07028235]
[1758534175365,1.30472034,112530.0,112520.0,0.24802852]
[1758534175566,1.30472034,112530.0,112520.0,0.05250774]
[1758534176438,1.30472034,112530.0,112520.0,0.23125391]
[1758534176641,0.34,112530.0,112520.0,0.24298168]
[1758534176852,0.46769038,112530.0,112520.0,0.24298168]
[1758534177934,0.28996,112530.0,112520.0,0.24298168]
[1758534178123,0.46769038,112530.0,112520.0,0.24298168]
[1758534178558,0.28996,112530.0,112520.0,0.24298168]
[1758534178756,0.46769038,112530.0,112520.0,0.30808164]
[1758534180200,0.96472034,112530.0,112520.0,0.30808164]
[1758534181130,0.78698996,112530.0,112520.0,0.30808164]
[1758534181800,0.96472034,112530.0,112520.0,0.30808164]
[1758534182773,0.78698996,112530.0,112520.0,0.30808164]
[1758534182986,0.96676034,112530.0,112520.0,0.30494164]
[1758534183438,0.96472034,112530.0,112520.0,0.30494164]
[1758534183660,0.96472034,112530.0,112520.0,0.30804164]
[1758534183996,0.04175836,112520.0,112510.0,0.17776184]
[1758534184210,0.04175836,112520.0,112510.0,0.26303151]
[1758534185069,0.04175836,112520.0,112510.0,0.26503151]
[1758534185909,0.04175836,112520.0,112510.0,0.30141668]
[1758534186115,0.04175836,112520.0,112510.0,0.30541668]
[1758534186317,0.04175836,112520.0,112510.0,0.42048746]
[1758534188942,0.04175836,112520.0,112510.0,0.41648746]
[1758534189177,0.04175836,112520.0,112510.0,0.42648746]
[1758534190356,0.04175836,112520.0,112510.0,0.42448746]
[1758534190561,0.04175836,112520.0,112510.0,0.42948746]
[1758534191591,0.04678836,112520.0,112510.0,0.42948746]
[1758534192004,0.04372836,112520.0,112510.0,0.42948746]
[1758534192202,0.04175836,112520.0,112510.0,0.42948746]
[1758534201006,0.04175836,112520.0,112510.0,0.42952746]
[1758534206685,0.04175836,112520.0,112510.0,0.71896746]
[1758534208702,0.04175836,112520.0,112510.0,0.42952746]
[1758534208912,0.04098615,112520.0,112510.0,0.71892746]
[1758534209466,0.04098615,112520.0,112510.0,0.42952746]
[1758534209677,0.04098615,112520.0,112510.0,0.71888746]
[1758534213391,0.04098615,112520.0,112510.0,0.76888746]
[1758534213598,0.04098615,112520.0,112510.0,1.18560998]
[1758534215167,0.04098615,112520.0,112510.0,1.18552998]
[1758534215377,0.04098615,112520.0,112510.0,1.28164998]
[1758534216403,0.04098615,112520.0,112510.0,0.89624998]
[1758534216621,0.04098615,112520.0,112510.0,1.28164998]
[1758534217041,0.04098615,112520.0,112510.0,1.28160998]
[1758534217471,0.04098615,112520.0,112510.0,1.18548998]
[1758534217677,0.04098615,112520.0,112510.0,0.89624998]
[1758534217918,0.04098615,112520.0,112510.0,1.18544998]
[1758534219702,0.04098615,112520.0,112510.0,0.89624998]
[1758534219907,0.04098615,112520.0,112510.0,1.28152998]
[1758534220789,0.04098615,112520.0,112510.0,1.55122998]
[1758534221011,0.04098615,112520.0,112510.0,1.16594998]
[1758534221228,0.04098615,112520.0,112510.0,1.45506998]
[1758534221466,0.04098615,112520.0,112510.0,1.16594998]
[1758534221669,0.04098615,112520.0,112510.0,1.45506998]
[1758534222843,0.04098615,112520.0,112510.0,1.55114998]
[1758534223567,0.04098615,112520.0,112510.0,1.16594998]
[1758534223763,0.04098615,112520.0,112510.0,1.55110998]
[1758534224293,0.04098615,112520.0,112510.0,1.28140998]
[1758534230771,0.04616615,112520.0,112510.0,1.16046998]
[1758534230934,0.06947615,112520.0,112510.0,0.87146998]
[1758534231115,0.06947615,112520.0,112510.0,1.11042998]
[1758534231321,0.06947615,112520.0,112510.0,1.06042998]
[1758534231521,0.06947615,112520.0,112510.0,1.11042998]
[1758534233067,0.06947615,112520.0,112510.0,1.38012998]
[1758534234937,0.04616615,112520.0,112510.0,1.40379998]
[1758534235977,0.04299615,112520.0,112510.0,1.40379998]
[1758534236621,0.04098615,112520.0,112510.0,1.40379998]
[1758534237986,0.04098615,112520.0,112510.0,1.40305998]
[1758534238703,0.04098615,112520.0,112510.0,1.45305998]
[1758534239946,0.02672,112550.0,112540.0,0.0301519]
[1758534240149,0.02672,112550.0,112540.0,0.62049584]
[1758534240150,0.02918041,112550.0,112540.0,0.62049584]